[Event "Titled Tuesday Blitz June 6 Early 2023"]
[White "Tomaszewski, Kacper"]
[Black "Spichkin, Alexander"]
[WhiteFideId "1127373"]
[BlackFideId "4144074"]
[WhiteElo "2211"]
[BlackElo "1986"]
[Result "1-0"]
[Round "8"]
[TimeControl "180+2"]
[Date "2023.06.06"]
[WhiteClock "0:00:05"]
[BlackClock "0:00:11"]
[Board "116"]

1. Nf3 {[%clk 0:02:55]}  e6 {[%clk 0:02:58]} 2. c4 {[%clk 0:02:55]}  f5 {[%clk 0:02:59]} 3. h3 {[%clk 0:02:53]}  Nf6 {[%clk 0:02:59]} 4. g4 {[%clk 0:02:53]}  fxg4 {[%clk 0:02:54]} 5. hxg4 {[%clk 0:02:54]}  Nxg4 {[%clk 0:02:53]} 6. e3 {[%clk 0:02:48]}  Qf6 {[%clk 0:02:47]} 7. Nc3 {[%clk 0:02:40]}  Nc6 {[%clk 0:02:42]} 8. d4 {[%clk 0:02:35]}  Bb4 {[%clk 0:02:42]} 9. Bd3 {[%clk 0:02:31]}  Rf8 {[%clk 0:02:36]} 10. Be4 {[%clk 0:02:08]}  Ne7 {[%clk 0:02:25]} 11. Bd2 {[%clk 0:02:02]}  Bxc3 {[%clk 0:02:24]} 12. Bxc3 {[%clk 0:01:58]}  d5 {[%clk 0:02:24]} 13. Bd3 {[%clk 0:01:40]}  Qxf3 {[%clk 0:02:16]} 14. Qxf3 {[%clk 0:01:41]}  Rxf3 {[%clk 0:02:15]} 15. Be2 {[%clk 0:01:42]}  Nxf2 {[%clk 0:02:06]} 16. Bxf3 {[%clk 0:01:41]}  Nxh1 {[%clk 0:01:56]} 17. Bxh1 {[%clk 0:01:42]}  c6 {[%clk 0:01:52]} 18. O-O-O {[%clk 0:01:37]}  Bd7 {[%clk 0:01:51]} 19. e4 {[%clk 0:01:35]}  O-O-O {[%clk 0:01:48]} 20. cxd5 {[%clk 0:01:31]}  cxd5 {[%clk 0:01:46]} 21. Bb4 {[%clk 0:01:29]}  Nc6 {[%clk 0:01:43]} 22. Bc5 {[%clk 0:01:24]}  Be8 {[%clk 0:01:30]} 23. exd5 {[%clk 0:01:20]}  exd5 {[%clk 0:01:24]} 24. Rg1 {[%clk 0:01:20]}  Bg6 {[%clk 0:01:24]} 25. Rg5 {[%clk 0:01:17]}  b6 {[%clk 0:01:23]} 26. Rxd5 {[%clk 0:01:09]}  bxc5 {[%clk 0:01:17]} 27. Rxc5 {[%clk 0:01:08]}  Rxd4 {[%clk 0:01:12]} 28. Rxc6+ {[%clk 0:01:08]}  Kd7 {[%clk 0:01:13]} 29. Ra6 {[%clk 0:01:07]}  Rc4+ {[%clk 0:01:07]} 30. Kd1 {[%clk 0:01:05]}  Rc7 {[%clk 0:01:06]} 31. b4 {[%clk 0:00:56]}  Ke7 {[%clk 0:00:55]} 32. a3 {[%clk 0:00:50]}  Kf7 {[%clk 0:00:51]} 33. Bd5+ {[%clk 0:00:49]}  Ke7 {[%clk 0:00:51]} 34. Ke1 {[%clk 0:00:44]}  Bf7 {[%clk 0:00:45]} 35. Bc6 {[%clk 0:00:41]}  Bc4 {[%clk 0:00:44]} 36. b5 {[%clk 0:00:41]}  h5 {[%clk 0:00:43]} 37. a4 {[%clk 0:00:39]}  h4 {[%clk 0:00:43]} 38. Kf2 {[%clk 0:00:38]}  g5 {[%clk 0:00:42]} 39. Bf3 {[%clk 0:00:32]}  Be6 {[%clk 0:00:39]} 40. a5 {[%clk 0:00:28]}  g4 {[%clk 0:00:39]} 41. Be4 {[%clk 0:00:17]}  g3+ {[%clk 0:00:38]} 42. Kf3 {[%clk 0:00:17]}  Rc3+ {[%clk 0:00:36]} 43. Ke2 {[%clk 0:00:16]}  g2 {[%clk 0:00:33]} 44. Rxa7+ {[%clk 0:00:16]}  Kd6 {[%clk 0:00:32]} 45. Rg7 {[%clk 0:00:15]}  Bc4+ {[%clk 0:00:29]} 46. Kd2 {[%clk 0:00:15]}  Ra3 {[%clk 0:00:27]} 47. Rg6+ {[%clk 0:00:15]}  Ke5 {[%clk 0:00:27]} 48. Bxg2 {[%clk 0:00:14]}  Rxa5 {[%clk 0:00:27]} 49. b6 {[%clk 0:00:14]}  Rb5 {[%clk 0:00:26]} 50. b7 {[%clk 0:00:14]}  Kd4 {[%clk 0:00:25]} 51. Rg4+ {[%clk 0:00:14]}  Kc5 {[%clk 0:00:25]} 52. Kc3 {[%clk 0:00:15]}  Rb3+ {[%clk 0:00:25]} 53. Kc2 {[%clk 0:00:16]}  Be6 {[%clk 0:00:23]} 54. Rg6 {[%clk 0:00:14]}  Bc4 {[%clk 0:00:20]} 55. Rg5+ {[%clk 0:00:13]}  Kd4 {[%clk 0:00:18]} 56. Rg4+ {[%clk 0:00:14]}  Ke3 {[%clk 0:00:18]} 57. Rxc4 {[%clk 0:00:13]}  Rb6 {[%clk 0:00:19]} 58. Rxh4 {[%clk 0:00:13]}  Kf2 {[%clk 0:00:18]} 59. Be4 {[%clk 0:00:13]}  Ke3 {[%clk 0:00:16]} 60. Rh6 {[%clk 0:00:13]}  Rxh6 {[%clk 0:00:16]} 61. b8=Q {[%clk 0:00:12]}  Kxe4 {[%clk 0:00:16]} 62. Qe8+ {[%clk 0:00:07]}  Kf5 {[%clk 0:00:16]} 63. Qf7+ {[%clk 0:00:07]}  Rf6 {[%clk 0:00:16]} 64. Qh5+ {[%clk 0:00:07]}  Ke6 {[%clk 0:00:16]} 65. Kd3 {[%clk 0:00:08]}  Rf5 {[%clk 0:00:15]} 66. Qg6+ {[%clk 0:00:08]}  Ke5 {[%clk 0:00:16]} 67. Qg7+ {[%clk 0:00:07]}  Ke6 {[%clk 0:00:15]} 68. Ke4 {[%clk 0:00:07]}  Rf6 {[%clk 0:00:15]} 69. Qg8+ {[%clk 0:00:07]}  Ke7 {[%clk 0:00:15]} 70. Ke5 {[%clk 0:00:07]}  Rf8 {[%clk 0:00:14]} 71. Qg5+ {[%clk 0:00:06]}  Kd7 {[%clk 0:00:13]} 72. Qg7+ {[%clk 0:00:05]}  Ke8 {[%clk 0:00:13]} 73. Ke6 {[%clk 0:00:05]}  Rf6+ {[%clk 0:00:12]} 74. Kxf6 {[%clk 0:00:05]}  Kd8 {[%clk 0:00:11]} 75. Qb7 {[%clk 0:00:05]} 1-0


[Site "https://www.chess.com"]

[Event "Titled Tuesday Blitz June 6 Early 2023"]
[White "Vyatkin, Dmitry"]
[Black "Martin, Lewis"]
[WhiteFideId "4171900"]
[BlackFideId "410551"]
[WhiteElo "2279"]
[BlackElo "2145"]
[Result "0-1"]
[Round "8"]
[TimeControl "180+2"]
[Date "2023.06.06"]
[WhiteClock "0:00:16"]
[BlackClock "0:00:48"]
[Board "119"]

1. d4 {[%clk 0:02:59]}  d5 {[%clk 0:02:59]} 2. c4 {[%clk 0:02:58]}  c6 {[%clk 0:02:59]} 3. Nf3 {[%clk 0:02:58]}  Nf6 {[%clk 0:02:59]} 4. g3 {[%clk 0:02:57]}  dxc4 {[%clk 0:02:57]} 5. Bg2 {[%clk 0:02:57]}  b5 {[%clk 0:02:56]} 6. O-O {[%clk 0:02:57]}  Bb7 {[%clk 0:02:49]} 7. Qc2 {[%clk 0:02:46]}  e6 {[%clk 0:02:49]} 8. Rd1 {[%clk 0:02:47]}  Be7 {[%clk 0:02:45]} 9. e4 {[%clk 0:02:45]}  O-O {[%clk 0:02:43]} 10. b3 {[%clk 0:02:40]}  cxb3 {[%clk 0:02:41]} 11. axb3 {[%clk 0:02:40]}  Nbd7 {[%clk 0:02:38]} 12. Nc3 {[%clk 0:02:34]}  b4 {[%clk 0:02:35]} 13. Na4 {[%clk 0:02:32]}  c5 {[%clk 0:02:24]} 14. e5 {[%clk 0:02:24]}  Nd5 {[%clk 0:02:20]} 15. dxc5 {[%clk 0:02:14]}  Rc8 {[%clk 0:02:16]} 16. Be3 {[%clk 0:01:56]}  Qc7 {[%clk 0:02:01]} 17. Bd4 {[%clk 0:01:36]}  Nxc5 {[%clk 0:01:54]} 18. Nxc5 {[%clk 0:01:34]}  Bxc5 {[%clk 0:01:53]} 19. Ng5 {[%clk 0:01:28]}  g6 {[%clk 0:01:45]} 20. Qe4 {[%clk 0:00:55]}  h6 {[%clk 0:01:32]} 21. Nxe6 {[%clk 0:00:54]}  fxe6 {[%clk 0:01:30]} 22. Bxc5 {[%clk 0:00:53]}  Rf5 {[%clk 0:01:20]} 23. Bd6 {[%clk 0:00:50]}  Qc2 {[%clk 0:01:09]} 24. Qxc2 {[%clk 0:00:44]}  Rxc2 {[%clk 0:01:09]} 25. f4 {[%clk 0:00:44]}  Nxf4 {[%clk 0:00:48]} 26. Bxb7 {[%clk 0:00:16]}  Nh3+ {[%clk 0:00:47]} 27. Kh1 {[%clk 0:00:16]}  Rff2 {[%clk 0:00:48]} 0-1


[Site "https://www.chess.com"]

[Event "Titled Tuesday Blitz June 6 Early 2023"]
[White "Toncheva, Nadya"]
[Black "Antonio, Jorge Carlos"]
[WhiteFideId "2924056"]
[BlackFideId "113190"]
[WhiteElo "2101"]
[BlackElo "2247"]
[Result "1-0"]
[Round "8"]
[TimeControl "180+2"]
[Date "2023.06.06"]
[WhiteClock "0:01:11"]
[BlackClock "0:00:06"]
[Board "120"]

1. d4 {[%clk 0:03:00]}  d5 {[%clk 0:02:58]} 2. c4 {[%clk 0:03:01]}  c6 {[%clk 0:02:58]} 3. Nc3 {[%clk 0:03:02]}  Nf6 {[%clk 0:02:57]} 4. e3 {[%clk 0:03:02]}  e6 {[%clk 0:02:55]} 5. Nf3 {[%clk 0:03:03]}  Be7 {[%clk 0:02:54]} 6. Bd3 {[%clk 0:03:03]}  O-O {[%clk 0:02:55]} 7. O-O {[%clk 0:03:03]}  b6 {[%clk 0:02:55]} 8. Qe2 {[%clk 0:03:00]}  Ba6 {[%clk 0:02:51]} 9. b3 {[%clk 0:02:59]}  Nbd7 {[%clk 0:02:47]} 10. e4 {[%clk 0:02:58]}  dxe4 {[%clk 0:02:46]} 11. Nxe4 {[%clk 0:02:57]}  Nxe4 {[%clk 0:02:46]} 12. Qxe4 {[%clk 0:02:58]}  Nf6 {[%clk 0:02:45]} 13. Qxc6 {[%clk 0:02:53]}  Rb8 {[%clk 0:02:38]} 14. Be3 {[%clk 0:02:21]}  Bb7 {[%clk 0:02:37]} 15. Qa4 {[%clk 0:02:22]}  Qc7 {[%clk 0:02:28]} 16. Ne5 {[%clk 0:02:11]}  Ne8 {[%clk 0:02:12]} 17. Qd7 {[%clk 0:02:05]}  Bc8 {[%clk 0:01:56]} 18. Qxc7 {[%clk 0:02:02]}  Nxc7 {[%clk 0:01:56]} 19. Nc6 {[%clk 0:02:02]}  Bb7 {[%clk 0:01:37]} 20. Nxb8 {[%clk 0:01:59]}  Rxb8 {[%clk 0:01:36]} 21. Bf4 {[%clk 0:01:58]}  Rc8 {[%clk 0:01:34]} 22. Rfe1 {[%clk 0:01:56]}  Bf6 {[%clk 0:01:32]} 23. Be5 {[%clk 0:01:55]}  Na6 {[%clk 0:01:21]} 24. Bxf6 {[%clk 0:01:54]}  gxf6 {[%clk 0:01:21]} 25. Be4 {[%clk 0:01:54]}  Bxe4 {[%clk 0:01:19]} 26. Rxe4 {[%clk 0:01:55]}  Nb4 {[%clk 0:01:19]} 27. a3 {[%clk 0:01:53]}  Nc6 {[%clk 0:01:18]} 28. Kf1 {[%clk 0:01:50]}  Rd8 {[%clk 0:01:17]} 29. Rd1 {[%clk 0:01:49]}  Na5 {[%clk 0:01:16]} 30. Re3 {[%clk 0:01:47]}  Kf8 {[%clk 0:01:14]} 31. Ke2 {[%clk 0:01:46]}  Kg7 {[%clk 0:01:08]} 32. Rg3+ {[%clk 0:01:46]}  Kf8 {[%clk 0:01:08]} 33. Rc3 {[%clk 0:01:46]}  Ke7 {[%clk 0:00:58]} 34. b4 {[%clk 0:01:46]}  Nc6 {[%clk 0:00:57]} 35. d5 {[%clk 0:01:42]}  Ne5 {[%clk 0:00:48]} 36. f4 {[%clk 0:01:34]}  Ng6 {[%clk 0:00:47]} 37. g3 {[%clk 0:01:33]}  h5 {[%clk 0:00:26]} 38. dxe6 {[%clk 0:01:32]}  fxe6 {[%clk 0:00:25]} 39. Rxd8 {[%clk 0:01:31]}  Kxd8 {[%clk 0:00:25]} 40. c5 {[%clk 0:01:29]}  b5 {[%clk 0:00:22]} 41. c6 {[%clk 0:01:29]}  Kc7 {[%clk 0:00:22]} 42. Rc5 {[%clk 0:01:29]}  a6 {[%clk 0:00:20]} 43. Rxh5 {[%clk 0:01:29]}  Kxc6 {[%clk 0:00:20]} 44. Rh6 {[%clk 0:01:29]}  Ne7 {[%clk 0:00:19]} 45. Rxf6 {[%clk 0:01:28]}  Kd5 {[%clk 0:00:19]} 46. h4 {[%clk 0:01:25]}  Nf5 {[%clk 0:00:19]} 47. Kf2 {[%clk 0:01:24]}  Nd4 {[%clk 0:00:17]} 48. h5 {[%clk 0:01:22]}  Nc2 {[%clk 0:00:17]} 49. h6 {[%clk 0:01:22]}  e5 {[%clk 0:00:15]} 50. h7 {[%clk 0:01:21]}  e4 {[%clk 0:00:14]} 51. h8=Q {[%clk 0:01:20]}  e3+ {[%clk 0:00:14]} 52. Ke2 {[%clk 0:01:20]}  Ke4 {[%clk 0:00:12]} 53. Qe8+ {[%clk 0:01:18]}  Kd4 {[%clk 0:00:10]} 54. Qe5+ {[%clk 0:01:14]}  Kc4 {[%clk 0:00:10]} 55. Rc6+ {[%clk 0:01:14]}  Kb3 {[%clk 0:00:09]} 56. Qc3+ {[%clk 0:01:12]}  Ka4 {[%clk 0:00:06]} 57. Rxa6# {[%clk 0:01:11]} 1-0


[Site "https://www.chess.com"]

[Event "Titled Tuesday Blitz June 6 Early 2023"]
[White "Sanhueza, Cristian"]
[Black "mohsengabr2002"]
[WhiteFideId "116815"]
[WhiteElo "2174"]
[BlackElo "2251"]
[Result "0-1"]
[Round "8"]
[TimeControl "180+2"]
[Date "2023.06.06"]
[WhiteClock "0:00:04"]
[BlackClock "0:00:43"]
[Board "121"]

1. e4 {[%clk 0:03:00]}  g6 {[%clk 0:02:35]} 2. d4 {[%clk 0:03:00]}  f6 {[%clk 0:02:35]} 3. Nc3 {[%clk 0:03:00]}  e6 {[%clk 0:02:36]} 4. h4 {[%clk 0:03:00]}  Nh6 {[%clk 0:02:37]} 5. f3 {[%clk 0:02:57]}  d6 {[%clk 0:02:35]} 6. Be3 {[%clk 0:02:57]}  Nf7 {[%clk 0:02:34]} 7. Qd2 {[%clk 0:02:57]}  Bg7 {[%clk 0:02:35]} 8. g4 {[%clk 0:02:56]}  c6 {[%clk 0:02:35]} 9. O-O-O {[%clk 0:02:56]}  b5 {[%clk 0:02:35]} 10. Bd3 {[%clk 0:02:54]}  a5 {[%clk 0:02:34]} 11. h5 {[%clk 0:02:50]}  g5 {[%clk 0:02:34]} 12. f4 {[%clk 0:02:50]}  h6 {[%clk 0:02:34]} 13. Nf3 {[%clk 0:02:46]}  a4 {[%clk 0:02:33]} 14. a3 {[%clk 0:02:45]}  Na6 {[%clk 0:02:32]} 15. f5 {[%clk 0:02:40]}  b4 {[%clk 0:02:27]} 16. axb4 {[%clk 0:02:37]}  Nxb4 {[%clk 0:02:27]} 17. fxe6 {[%clk 0:02:18]}  Bxe6 {[%clk 0:02:27]} 18. d5 {[%clk 0:02:18]}  Bxg4 {[%clk 0:02:21]} 19. Rdf1 {[%clk 0:02:01]}  a3 {[%clk 0:02:17]} 20. b3 {[%clk 0:01:43]}  f5 {[%clk 0:01:57]} 21. Nd4 {[%clk 0:01:36]}  a2 {[%clk 0:01:48]} 22. Kb2 {[%clk 0:01:35]}  Qa5 {[%clk 0:01:43]} 23. Na4 {[%clk 0:01:28]}  c5 {[%clk 0:01:39]} 24. c3 {[%clk 0:01:04]}  Nxd3+ {[%clk 0:01:36]} 25. Qxd3 {[%clk 0:01:03]}  cxd4 {[%clk 0:01:36]} 26. Bxd4 {[%clk 0:01:01]}  Bxd4 {[%clk 0:01:35]} 27. Qxd4 {[%clk 0:00:53]}  Qa7 {[%clk 0:01:20]} 28. Qf6 {[%clk 0:00:23]}  Qe7 {[%clk 0:01:15]} 29. Qxe7+ {[%clk 0:00:21]}  Kxe7 {[%clk 0:01:15]} 30. exf5 {[%clk 0:00:22]}  Kf6 {[%clk 0:01:10]} 31. Nb6 {[%clk 0:00:20]}  Ra7 {[%clk 0:01:06]} 32. Rhg1 {[%clk 0:00:18]}  Bxf5 {[%clk 0:01:02]} 33. Rg2 {[%clk 0:00:16]}  a1=Q+ {[%clk 0:01:00]} 34. Rxa1 {[%clk 0:00:16]}  Rxa1 {[%clk 0:01:01]} 35. Kxa1 {[%clk 0:00:17]}  Rb8 {[%clk 0:01:00]} 36. Na4 {[%clk 0:00:09]}  Rxb3 {[%clk 0:01:00]} 37. Ka2 {[%clk 0:00:09]}  Rb7 {[%clk 0:00:58]} 38. c4 {[%clk 0:00:08]}  Ne5 {[%clk 0:00:58]} 39. c5 {[%clk 0:00:08]}  Ra7 {[%clk 0:00:58]} 40. Kb3 {[%clk 0:00:08]}  Be4 {[%clk 0:00:52]} 41. Rf2+ {[%clk 0:00:05]}  Kg7 {[%clk 0:00:53]} 42. cxd6 {[%clk 0:00:05]}  Bxd5+ {[%clk 0:00:53]} 43. Kb4 {[%clk 0:00:04]}  Rd7 {[%clk 0:00:50]} 44. Re2 {[%clk 0:00:03]}  Nd3+ {[%clk 0:00:48]} 45. Kc3 {[%clk 0:00:03]}  Nf4 {[%clk 0:00:48]} 46. Nc5 {[%clk 0:00:01]}  Nxe2+ {[%clk 0:00:47]} 47. Kd2 {[%clk 0:00:01]}  Rxd6 {[%clk 0:00:47]} 48. Kxe2 {[%clk 0:00:01]}  Bf7 {[%clk 0:00:46]} 49. Ke3 {[%clk 0:00:01]}  Bxh5 {[%clk 0:00:46]} 50. Kf2 {[%clk 0:00:02]}  Bg6 {[%clk 0:00:45]} 51. Nb7 {[%clk 0:00:02]}  Rd7 {[%clk 0:00:44]} 52. Nc5 {[%clk 0:00:02]}  Rd5 {[%clk 0:00:44]} 53. Nb7 {[%clk 0:00:02]}  h5 {[%clk 0:00:44]} 54. Kg3 {[%clk 0:00:02]}  Kf6 {[%clk 0:00:44]} 55. Kh2 {[%clk 0:00:03]}  Ke5 {[%clk 0:00:43]} 56. Kg3 {[%clk 0:00:03]}  Kf5 {[%clk 0:00:43]} 57. Kh2 {[%clk 0:00:04]}  Kg4 {[%clk 0:00:43]} 58. Kg1 {[%clk 0:00:03]}  h4 {[%clk 0:00:43]} 59. Nc5 {[%clk 0:00:04]}  Rxc5 {[%clk 0:00:43]} 0-1


[Site "https://www.chess.com"]

[Event "Titled Tuesday Blitz June 6 Early 2023"]
[White "Sovetbekova, Nurai"]
[Black "Estrada Nieto, Julian"]
[WhiteFideId "13801910"]
[BlackFideId "5101018"]
[WhiteElo "1857"]
[BlackElo "2161"]
[Result "0-1"]
[Round "8"]
[TimeControl "180+2"]
[Date "2023.06.06"]
[WhiteClock "0:00:09"]
[BlackClock "0:00:14"]
[Board "126"]

1. d4 {[%clk 0:03:00]}  d5 {[%clk 0:03:00]} 2. c4 {[%clk 0:02:56]}  dxc4 {[%clk 0:03:01]} 3. e4 {[%clk 0:02:55]}  e5 {[%clk 0:03:00]} 4. Nf3 {[%clk 0:02:52]}  exd4 {[%clk 0:03:01]} 5. Qxd4 {[%clk 0:02:47]}  Qxd4 {[%clk 0:03:00]} 6. Nxd4 {[%clk 0:02:47]}  Nf6 {[%clk 0:03:00]} 7. e5 {[%clk 0:02:40]}  Ng4 {[%clk 0:02:59]} 8. f4 {[%clk 0:02:22]}  Bc5 {[%clk 0:02:58]} 9. Nb5 {[%clk 0:02:20]}  Na6 {[%clk 0:02:58]} 10. Bxc4 {[%clk 0:02:18]}  c6 {[%clk 0:02:46]} 11. N5c3 {[%clk 0:02:11]}  Nb4 {[%clk 0:02:43]} 12. Na3 {[%clk 0:02:08]}  Bf5 {[%clk 0:02:24]} 13. Na4 {[%clk 0:01:38]}  Bf2+ {[%clk 0:02:13]} 14. Ke2 {[%clk 0:01:34]}  b5 {[%clk 0:02:09]} 15. Nxb5 {[%clk 0:01:24]}  cxb5 {[%clk 0:02:08]} 16. Bxb5+ {[%clk 0:01:25]}  Ke7 {[%clk 0:01:51]} 17. h3 {[%clk 0:01:20]}  Rab8 {[%clk 0:01:24]} 18. Bc4 {[%clk 0:01:13]}  Rhc8 {[%clk 0:01:16]} 19. hxg4 {[%clk 0:00:59]}  Bxg4+ {[%clk 0:01:04]} 20. Kxf2 {[%clk 0:01:00]}  Rxc4 {[%clk 0:01:04]} 21. Nc3 {[%clk 0:00:54]}  Nc2 {[%clk 0:01:01]} 22. Nd5+ {[%clk 0:00:42]}  Ke6 {[%clk 0:00:59]} 23. Ne3 {[%clk 0:00:39]}  Nxe3 {[%clk 0:00:46]} 24. Kxe3 {[%clk 0:00:31]}  Bf5 {[%clk 0:00:45]} 25. b3 {[%clk 0:00:29]}  Rc3+ {[%clk 0:00:42]} 26. Kf2 {[%clk 0:00:25]}  Rc2+ {[%clk 0:00:42]} 27. Kg3 {[%clk 0:00:23]}  Be4 {[%clk 0:00:36]} 28. Rg1 {[%clk 0:00:19]}  Rbc8 {[%clk 0:00:33]} 29. Ba3 {[%clk 0:00:17]}  Kf5 {[%clk 0:00:34]} 30. Rac1 {[%clk 0:00:15]}  h6 {[%clk 0:00:22]} 31. Rxc2 {[%clk 0:00:14]}  Rxc2 {[%clk 0:00:23]} 32. Bd6 {[%clk 0:00:11]}  Rxa2 {[%clk 0:00:21]} 33. b4 {[%clk 0:00:11]}  Rd2 {[%clk 0:00:18]} 34. Bc5 {[%clk 0:00:11]}  a6 {[%clk 0:00:17]} 35. Bd6 {[%clk 0:00:09]}  g5 {[%clk 0:00:14]} 0-1


[Site "https://www.chess.com"]

[Event "Titled Tuesday Blitz June 6 Early 2023"]
[White "Balla, Tamas-Kristof"]
[Black "Hinds, Nathan"]
[WhiteFideId "1208497"]
[BlackFideId "7400730"]
[WhiteElo "2334"]
[BlackElo "2001"]
[Result "1-0"]
[Round "8"]
[TimeControl "180+2"]
[Date "2023.06.06"]
[WhiteClock "0:00:36"]
[BlackClock "0:00:47"]
[Board "128"]

1. e4 {[%clk 0:02:59]}  c6 {[%clk 0:02:57]} 2. d4 {[%clk 0:02:58]}  d5 {[%clk 0:02:58]} 3. exd5 {[%clk 0:02:59]}  cxd5 {[%clk 0:02:58]} 4. c4 {[%clk 0:02:59]}  Nf6 {[%clk 0:02:57]} 5. Nc3 {[%clk 0:02:57]}  e6 {[%clk 0:02:57]} 6. Nf3 {[%clk 0:02:54]}  Be7 {[%clk 0:02:57]} 7. Bd3 {[%clk 0:02:54]}  dxc4 {[%clk 0:02:56]} 8. Bxc4 {[%clk 0:02:55]}  O-O {[%clk 0:02:56]} 9. O-O {[%clk 0:02:51]}  Nc6 {[%clk 0:02:56]} 10. Bg5 {[%clk 0:02:49]}  b6 {[%clk 0:02:56]} 11. Qd2 {[%clk 0:02:40]}  Bb7 {[%clk 0:02:56]} 12. Rad1 {[%clk 0:02:38]}  Nb4 {[%clk 0:02:54]} 13. Ne5 {[%clk 0:02:34]}  Nbd5 {[%clk 0:02:38]} 14. Rfe1 {[%clk 0:02:28]}  Rc8 {[%clk 0:02:35]} 15. Bd3 {[%clk 0:02:15]}  Nxc3 {[%clk 0:02:24]} 16. bxc3 {[%clk 0:02:16]}  Nd5 {[%clk 0:02:19]} 17. Bxe7 {[%clk 0:02:08]}  Nxe7 {[%clk 0:02:19]} 18. Re3 {[%clk 0:01:58]}  Ng6 {[%clk 0:02:19]} 19. Rh3 {[%clk 0:01:50]}  Qd5 {[%clk 0:02:08]} 20. f3 {[%clk 0:01:44]}  Rfd8 {[%clk 0:02:06]} 21. Be4 {[%clk 0:01:41]}  Nxe5 {[%clk 0:01:24]} 22. Bxd5 {[%clk 0:01:36]}  Rxd5 {[%clk 0:01:25]} 23. Qc2 {[%clk 0:01:10]}  Ng6 {[%clk 0:01:24]} 24. c4 {[%clk 0:01:09]}  Rd7 {[%clk 0:01:23]} 25. Rg3 {[%clk 0:00:57]}  Rdc7 {[%clk 0:01:22]} 26. Qa4 {[%clk 0:00:54]}  a6 {[%clk 0:01:05]} 27. c5 {[%clk 0:00:45]}  bxc5 {[%clk 0:01:01]} 28. dxc5 {[%clk 0:00:46]}  Rxc5 {[%clk 0:01:01]} 29. h4 {[%clk 0:00:46]}  Rc4 {[%clk 0:00:59]} 30. Qd7 {[%clk 0:00:44]}  R4c7 {[%clk 0:00:55]} 31. Qd4 {[%clk 0:00:38]}  Bd5 {[%clk 0:00:48]} 32. h5 {[%clk 0:00:37]}  e5 {[%clk 0:00:49]} 33. Qxd5 {[%clk 0:00:37]}  Nf4 {[%clk 0:00:47]} 34. Qd8+ {[%clk 0:00:36]} 1-0


[Site "https://www.chess.com"]

[Event "Titled Tuesday Blitz June 6 Early 2023"]
[White "Ansh M Shah"]
[Black "Chuemsakul, Sarocha"]
[WhiteFideId "25033379"]
[BlackFideId "6203710"]
[WhiteElo "2084"]
[BlackElo "1686"]
[Result "1-0"]
[Round "8"]
[TimeControl "180+2"]
[Date "2023.06.06"]
[WhiteClock "0:01:34"]
[BlackClock "0:00:02"]
[Board "129"]

1. d4 {[%clk 0:03:00]}  Nf6 {[%clk 0:03:00]} 2. c4 {[%clk 0:03:01]}  g6 {[%clk 0:03:00]} 3. h4 {[%clk 0:03:01]}  Bg7 {[%clk 0:03:01]} 4. Nc3 {[%clk 0:03:01]}  h5 {[%clk 0:03:01]} 5. e4 {[%clk 0:03:01]}  d6 {[%clk 0:03:02]} 6. Be2 {[%clk 0:03:02]}  Bg4 {[%clk 0:03:01]} 7. Nf3 {[%clk 0:03:02]}  O-O {[%clk 0:03:00]} 8. O-O {[%clk 0:03:02]}  Nc6 {[%clk 0:02:59]} 9. d5 {[%clk 0:03:02]}  Ne5 {[%clk 0:02:59]} 10. Nxe5 {[%clk 0:03:02]}  dxe5 {[%clk 0:02:59]} 11. Bg5 {[%clk 0:03:01]}  Bxe2 {[%clk 0:02:54]} 12. Qxe2 {[%clk 0:03:00]}  Nh7 {[%clk 0:02:53]} 13. Be3 {[%clk 0:02:59]}  Re8 {[%clk 0:02:48]} 14. c5 {[%clk 0:02:54]}  Nf8 {[%clk 0:02:47]} 15. Rac1 {[%clk 0:02:53]}  c6 {[%clk 0:02:45]} 16. Rfd1 {[%clk 0:02:53]}  Qc8 {[%clk 0:02:39]} 17. b4 {[%clk 0:02:47]}  a6 {[%clk 0:02:38]} 18. a4 {[%clk 0:02:47]}  Nh7 {[%clk 0:02:31]} 19. b5 {[%clk 0:02:45]}  axb5 {[%clk 0:02:30]} 20. axb5 {[%clk 0:02:46]}  f5 {[%clk 0:02:23]} 21. exf5 {[%clk 0:02:45]}  gxf5 {[%clk 0:02:14]} 22. Bg5 {[%clk 0:02:35]}  Nf6 {[%clk 0:00:53]} 23. Bxf6 {[%clk 0:02:29]}  exf6 {[%clk 0:00:43]} 24. Qxh5 {[%clk 0:02:28]}  f4 {[%clk 0:00:40]} 25. bxc6 {[%clk 0:02:14]}  bxc6 {[%clk 0:00:40]} 26. Ne4 {[%clk 0:02:15]}  cxd5 {[%clk 0:00:31]} 27. Nd6 {[%clk 0:02:11]}  Qe6 {[%clk 0:00:22]} 28. Nxe8 {[%clk 0:02:08]}  Rxe8 {[%clk 0:00:23]} 29. c6 {[%clk 0:02:08]}  Rc8 {[%clk 0:00:23]} 30. c7 {[%clk 0:02:07]}  d4 {[%clk 0:00:15]} 31. Qg6 {[%clk 0:02:04]}  Qf7 {[%clk 0:00:13]} 32. Qf5 {[%clk 0:01:59]}  Qe8 {[%clk 0:00:14]} 33. h5 {[%clk 0:01:51]}  Bf8 {[%clk 0:00:10]} 34. Qxf6 {[%clk 0:01:45]}  Ba3 {[%clk 0:00:05]} 35. Rc6 {[%clk 0:01:36]}  Be7 {[%clk 0:00:01]} 36. Qe6+ {[%clk 0:01:33]}  Kf8 {[%clk 0:00:01]} 37. Qh6+ {[%clk 0:01:32]}  Kg8 {[%clk 0:00:01]} 38. Rg6+ {[%clk 0:01:32]}  Kf7 {[%clk 0:00:02]} 39. Qh7+ {[%clk 0:01:33]}  Kf8 {[%clk 0:00:02]} 40. Rg8# {[%clk 0:01:34]} 1-0


[Site "https://www.chess.com"]

[Event "Titled Tuesday Blitz June 6 Early 2023"]
[White "Topalov, Aleksandar"]
[Black "Jiganchine, Roman"]
[WhiteFideId "925659"]
[BlackFideId "2603667"]
[WhiteElo "2151"]
[BlackElo "2304"]
[Result "1-0"]
[Round "8"]
[TimeControl "180+2"]
[Date "2023.06.06"]
[WhiteClock "0:00:55"]
[BlackClock "0:00:03"]
[Board "130"]

1. b3 {[%clk 0:03:00]}  d5 {[%clk 0:02:57]} 2. Bb2 {[%clk 0:03:01]}  Bf5 {[%clk 0:02:56]} 3. Nf3 {[%clk 0:03:00]}  e6 {[%clk 0:02:56]} 4. g3 {[%clk 0:03:00]}  Nf6 {[%clk 0:02:55]} 5. Bg2 {[%clk 0:03:00]}  h6 {[%clk 0:02:55]} 6. O-O {[%clk 0:03:00]}  Be7 {[%clk 0:02:55]} 7. d3 {[%clk 0:03:00]}  a5 {[%clk 0:02:54]} 8. a3 {[%clk 0:02:58]}  Bh7 {[%clk 0:02:52]} 9. Nbd2 {[%clk 0:02:57]}  O-O {[%clk 0:02:50]} 10. e3 {[%clk 0:02:54]}  c5 {[%clk 0:02:47]} 11. Ne5 {[%clk 0:02:51]}  Nbd7 {[%clk 0:02:46]} 12. a4 {[%clk 0:02:47]}  Rc8 {[%clk 0:02:33]} 13. Qe2 {[%clk 0:02:44]}  Qb6 {[%clk 0:02:18]} 14. Nxd7 {[%clk 0:02:38]}  Nxd7 {[%clk 0:02:17]} 15. e4 {[%clk 0:02:38]}  Rfe8 {[%clk 0:01:58]} 16. Rab1 {[%clk 0:02:36]}  Bf6 {[%clk 0:01:35]} 17. e5 {[%clk 0:02:27]}  Be7 {[%clk 0:01:34]} 18. Kh1 {[%clk 0:02:27]}  Qa6 {[%clk 0:01:30]} 19. f4 {[%clk 0:02:20]}  b5 {[%clk 0:01:18]} 20. axb5 {[%clk 0:02:13]}  Qxb5 {[%clk 0:01:19]} 21. Ra1 {[%clk 0:02:12]}  c4 {[%clk 0:01:14]} 22. dxc4 {[%clk 0:02:08]}  Qb6 {[%clk 0:00:54]} 23. f5 {[%clk 0:01:41]}  Bxf5 {[%clk 0:00:44]} 24. Rxf5 {[%clk 0:01:41]}  exf5 {[%clk 0:00:43]} 25. Bxd5 {[%clk 0:01:41]}  Nf8 {[%clk 0:00:37]} 26. Qf1 {[%clk 0:01:20]}  g6 {[%clk 0:00:24]} 27. g4 {[%clk 0:01:20]}  Bg5 {[%clk 0:00:13]} 28. Nf3 {[%clk 0:01:14]}  Ne6 {[%clk 0:00:10]} 29. gxf5 {[%clk 0:01:13]}  gxf5 {[%clk 0:00:06]} 30. Nxg5 {[%clk 0:01:09]}  Nxg5 {[%clk 0:00:04]} 31. Qxf5 {[%clk 0:01:08]}  Re6 {[%clk 0:00:03]} 32. Rg1 {[%clk 0:00:55]} 1-0


[Site "https://www.chess.com"]